Workbook

Sheet Aggregated W2E Tool
B1: Aggregated Waste to Energy (W2E) Calculator | K1: SOURCE: | L1: P.PIP.0547 | AB1: PER PLANT | AD1: PER PLANT | AF1: PER PLANT | AH1: PER PLANT | AI1: =#REF!/4 ->  | AJ1: kL per day
B2: Rev | C2: REVISION DETAILS | H2: DATE | L2: NGER DETERMINATION | Y2: DESIGNED | Z2: CHECKED | AI2: =AI3*#REF! ->  | AJ2: tpd cooling water
B3: A | C3: Prelim | H3: 2019-11-01 | L3: P.PIP.0739 | N3: =N55 -> Power cycle efficiency | Y3: GMF | Z3: MCB | AI3: =#REF!*3600 ->  | AJ3: tph cooling water
B4: Throughput at RMP | C4: 6000 | D4: Head per week | L4: National Waste Report 2018, 19 NOVEMBER 2018, PREPARED FOR Department of the Environment and Energy | S4: P.PSH.0867 Background numbers | U4: 2327 tHSCW/week
C5: =C4*0.355 -> 2130 | D5: tHSCW/week | E5: Note 1 head = | F5: 0.355 | H5: tHSCW
B6: Waste streams at RMP | C6: Tonnes per week | D6: BMP m3 CH4/week | E6: Solids % | F6: Volatile Solids VS/TS% | H6: BMP [m3 CH4/t VS] | I6: Density [kg/m3] | J6: LHV [GJ/t] | K6: HHV dry | S6: 625 | U6: hpd | V6: =C5/(S6*0.355*7) -> 1.371428571 | W6: ratio
B7: Paunch | C7: =0.071235926*C5 -> 151.7325224 | D7: =C7*E7*F7*H7 -> 5595.566811 | E7: =1-0.801 -> 0.199 | F7: =AVERAGE(72.1%,88%) -> 0.8005 | H7: =AVERAGE(226,237) -> 231.5 | I7: 270 | J7: 1.7 | K7: 18.9 | S7: 250 | U7: days pa | V7: =325/S7 -> 1.3 | W7: ratio
B8: Aerobic Sludge | C8: =0.195898797*C5 -> 417.2644376 | D8: =C8*E8*F8*H8 -> 10280.87416 | E8: 0.125 | F8: 0.857 | H8: =AVERAGE(210,250) -> 230 | I8: 721 | J8: 2.1 | T8: tpa | U8: tpa | V8: tpw | W8: tpw/tHSCW
B9: DAF Sludge | C9: =0.035617963*C5 -> 75.86626119 | D9: =C9*E9*F9*H9 -> 2112.571909 | E9: 0.07 | F9: 0.6 | H9: =AVERAGE(740,586) -> 663 | I9: 1000 | J9: 3 | S9: paunch | T9: 4000 | U9: =T9*$V$6*$V$7 -> 7131.428571 | V9: =U9/47 -> 151.7325228 | W9: =V9/$C$5 -> 0.0712359262
B10: Red stream screenings | C10: =991/6400*C4/52 -> 17.86658654 | D10: =C10*E10*F10*H10 -> 930.4918269 | E10: 0.2 | F10: 0.7 | H10: 372 | J10: =J15 -> 4.65
B11: Green stream screenings | C11: =687/6400*C4/52 -> 12.38581731 | D11: 502.1423713 | E11: =E7 -> 0.199 | F11: =F7 -> 0.8005 | H11: =AVERAGE(245,264) -> 254.5 | I11: =I7 -> 270 | J11: =J7 -> 1.7
B12: Packaging waste - Cryovac / multi-layered plastics | C12: =598/52/(1500*5)*C4 -> 9.2 | D12: =C12*E12*F12*H12 -> 0 | E12: 0.98 | F12: 0 | H12: 0 | J12: 35.7
B13: Packaging waste - contaminated cardboard, paper and other plastics | C13: =432/52/(1500*5)*C4 -> 6.646153846 | D13: =C13*E13*F13*H13 -> 59.81538462 | E13: 0.9 | F13: 0.2 | H13: 50 | J13: 16.75
B14: Wood wastes (creates, workshop, demolition) | C14: =174/52/(1500*5)*C4 -> 2.676923077 | D14: 7.227692308 | E14: 0.9 | F14: 0.3 | H14: 10 | J14: 18.6
B15: Kitchen / Cafeteria organics | C15: =200/52/(1500*5)*C4 -> 3.076923077 | D15: 436.8 | E15: =E23 -> 0.26 | F15: =F23 -> 0.91 | H15: 600 | J15: 4.65
B16: SUB-TOTAL | C16: =SUM(C7:C15) -> 696.715625 | D16: =SUM(D7:D15) -> 19925.49016 | E16: =SUMPRODUCT(C7:C15,E7:E15)/C16 -> 0.1606226775 | F16: =SUMPRODUCT(E7:E15,F7:F15,C7:C15)/(E16*C16) -> 0.7075273571 | J16: =(SUMPRODUCT(C7:C9,J7:J9)+SUMPRODUCT(C10:C15,J10:J15))/(C16) -> 2.827260327
B17: SUB-TOTAL - Suitable for anaerobic digestion | C17: =SUM(C7:C11) -> 675.115625 | D17: =SUM(D7:D11) -> 19421.64708 | E17: =SUMPRODUCT(C7:C11,E7:E11)/C17 -> 0.138793351 | F17: =SUMPRODUCT(E7:E11,F7:F11,C7:C11)/(E17*C17) -> 0.8167540381 | H17: Note: dilute to 10% solids | J17: =(SUMPRODUCT(C7:C11,J7:J11))/(C17) -> 2.171383468
B18: SUB-TOTAL - Suitable for Refuse Derived Fuel (RDF) | C18: =SUM(C12:C15) -> 21.6 | E18: =SUMPRODUCT(C12:C15,E12:E15)/C18 -> 0.8429059829 | F18: =SUMPRODUCT(E12:E15,F12:F15,C12:C15)/(E18*C18) -> 0.1453897113 | J18: =(SUMPRODUCT(C12:C15,J12:J15))/(C18) -> 23.32692308
B19: Surrounding Waste Streams | C19: 20000 | D19: Population
C20: Tonnes per week | D20: BMP m3 CH4/week | E20: Solids % | F20: Volatile Solids % | H20: BMP [m3 CH4/kg VS] | I20: Density [kg/m3] | J20: LHV [GJ/t] | K20: % | L20: 625 | N20: hpd | O20: =C19/(L20*0.355*7) -> 12.87726358 | P20: ratio
B21: Municipal Solid Waste - After recycling | C21: =L22*C19 -> 115.5409631 | D21: =C21*E21*F21*H21 -> 0 | E21: 0.63 | F21: 0.832 | I21: 550 | J21: 10.47 | K21: =C21/C41 -> 0.334528401 | L21: =0.56/52 -> 0.01076923077 | M21: MSW tonnes per week per person
B22: =B29 -> Segregated Wood [dry] | C22: =0.01*C21 -> 1.155409631 | D22: =D29 -> 0 | E22: =E29 -> 0.923 | F22: 0.819 | H22: 0 | I22: 550 | J22: 17.5 | L22: =7390000/24600000/52 -> 0.005777048155 | M22: MSW landfill tonnes per person
B23: FOGO (Food Organics / Green Organics) | C23: =(0.35+0.165)*C21 -> 59.503596 | D23: 8447.130488 | E23: 0.26 | F23: 0.91 | H23: =H15 -> 600 | I23: 700 | J23: 4.65 | L23: Check: | M23: =5.9502/9.4 -> 0.633
B24: All organics | C24: =(1-0.04-0.28)*C21 -> 78.56785491 | F24: 0.6
B25: Inerts i.e. polymer, bricks, masonry, etc. | C25: =C21-C24 -> 36.97310819
B26: Refuse Derived Fuel [All Organics + Paper + Cardboard + Plastics] | C26: =(0.255+0.08+0.086)*C21/52 -> 0.9354374128 | J26: 15 | K26: =C26/#REF! -> 
B27: Refuse Derived Fuel excluding FOGO [Textiles + Nappies + Rubber/leather + Paper + Cardboard + Plastics] | C27: =(0.08+0.086)*#REF!/52+(0.017+0.046+0.012+0.012)*#REF!+(0.125+0.04+0.015+0.035)*C41+(0.06*C14) ->  | E27: =1-0.2672 -> 0.7328 | J27: 13.43 | K27: =C27/#REF! -> 
B28: Construction & Demolition - After recycling | C28: =C21/7.39*6.71 -> 104.9093183 | E28: =AVERAGE(E29:E32) -> 0.8795 | K28: =C28/C41 -> 0.3037463559
B29: Segregated Wood [dry] | C29: =0.06*C28 -> 6.294559099 | D29: 0 | E29: =1-0.077 -> 0.923 | F29: 0.819 | I29: 550 | J29: 17.5
B30: All organics | C30: =C28*(0.03+0.02+0.06) -> 11.54002502
B31: Refuse Derived Fuel [All organics] | C31: =0.11*C28 -> 11.54002502
B32: =B25 -> Inerts i.e. polymer, bricks, masonry, etc. | C32: =0.89*C28 -> 93.36929331 | D32: =C32*E32*F32*H32 -> 0 | E32: 0.836 | F32: 0.843 | I32: 550
B33: Commercial and Industrial - after recycling | C33: =C21/7.39*7.63 -> 119.2933083 | E33: =AVERAGE(E34:E37) -> 0.644 | K33: =C33/C41 -> 0.3453926521
B34: Segregated Wood | C34: =0.125*C33 -> 14.91166354 | D34: =C34*E34*F34*H34 -> 0 | E34: 0.836 | F34: 0.843 | I34: 550 | J34: 12.2
B35: FOGO (Food Organics / Green Organics) | C35: =C33*(0.215+0.04) -> 30.41979362 | D35: 4318.393902 | E35: =E23 -> 0.26 | F35: =F23 -> 0.91 | H35: =H23 -> 600 | I35: =I23 -> 700 | J35: =J23 -> 4.65
B36: All organics | C36: =C33-C37 -> 74.5583177
B37: =B25 -> Inerts i.e. polymer, bricks, masonry, etc. | C37: =0.375*C33 -> 44.73499062 | D37: =C37*E37*F37*H37 -> 0 | E37: 0.836 | F37: 0.843 | I37: 550
B38: Metals | C38: =0.219*C19/52 -> 84.23076923 | J38: 0
B39: Used tyre crumb [not considered RDF] | C39: =88000/6000000/52*C19 -> 5.641025641 | D39: =C39*E39*F39*H39 -> 0 | E39: 0.99 | F39: 0.2 | H39: 0 | I39: 300 | J39: 31.4
B40: Grease Trap Waste | C40: 0 | D40: 0 | E40: 0.0835 | F40: 0.785 | H40: 1010 | I40: 1000 | L40: CHECK: | M40: =(C21+C28+C33)*52/C19 -> 0.8833333333 | N40: tonnes pp pa | O40: to landfill
B41: SUB-TOTAL Surrounding Waste Streams | C41: =C21+C28+C33+C39+C40 -> 345.3846154 | D41: =D23+D35 -> 12765.52439 | E41: =(C21*E21+C28*E28+C33*E33)/(C41) -> 0.7003306806
B42: SUB-TOTAL - Suitable for anaerobic digestion [FOGO] | C42: =C23+C35 -> 89.92338962 | D42: =D41 -> 12765.52439 | E42: =E23 -> 0.26 | F42: =F23 -> 0.91 | J42: =J23 -> 4.65
B43: SUB-TOTAL - RDF [All Organics + Paper + Cardboard + Plastics] | C43: =12/21.7*(C33+C28+C21) -> 187.8766395 | J43: 15 | K43: =C43/C41 -> 0.5439635442
B44: SUB-TOTAL - RDF excluding FOGO [Textiles + Nappies + Rubber/leather + Paper + Cardboard + Plastics] | C44: =7/21.7*(C21+C28+C33) -> 109.5947064 | E44: =E27 -> 0.7328 | J44: 13.43 | K44: =C44/C41 -> 0.3173120674
B45: SUB-TOTAL - Wood for combustion | C45: =(C22+C29+C34) -> 22.36163227 | E45: =E28 -> 0.8795 | J45: 13.43 | K45: =C45/C42 -> 0.2486742589
B46: TOTAL Waste: Tonnes per week | C46: =C41+C16 -> 1042.10024 | D46: =D41+D16 -> 32691.01455 | E46: =(C41*E41+C16*E16)/(C46) -> 0.3394987912
B47: TOTAL Waste: Tonnes per annum | C47: =C46*52 -> 54189.2125 | D47: =D46*52 -> 1699932.756 | E47: =(C41*E41+C16*E16)/(C47/52) -> 0.3394987912
B48: TOTAL Suitable for Anaerobic Digestion Tonnes per annum | C48: =(C42+SUM(C17))*52 -> 39782.02876 | E48: =(C42*E42+C17*E17)/(C48/52) -> 0.153040092 | F48: =H17 -> Note: dilute to 10% solids | J48: =(SUMPRODUCT(C6:C8,J6:J8)+SUMPRODUCT(C9:C14,J9:J14)+C42*J42)/(C48/52) -> 3.102629369
B49: TOTAL RDF: Tonnes per annum RDF [incl. all Organics] | C49: =(C43+SUM(C7:C9,C10,C11:C15))*52 -> 45998.79775 | J49: =(SUMPRODUCT(C7:C9,J7:J9)+SUMPRODUCT(C10:C15,J10:J15)+C43*J43)/(C49/52) -> 5.412602201
B50: TOTAL RDF: Tonnes per annum RDF [excl. FOGO and RMP organics] | C50: =(C44+SUM(C12:C15))*52 -> 6822.124731 | E50: =E44 -> 0.7328 | J50: =(SUMPRODUCT(C10:C15,J10:J15)+C44*J44)/(C50/52) -> 15.85318508
B51: TOTAL not suitable for W2E Tonnes per annum | C51: =C47-C48-C50 -> 7585.059009
C52: Available Energy
E53: Power generation | F53: Waste heat recovery | H53: Thermal only
B54: W2E Options | C54: GJ/week | D54: Ash tpw | E54: MWe | F54: MWt | H54: MWt
B55: 1. Anaerobic Digestion | C55: =D46*35.5/1000 -> 1160.531016 | E55: =C55/7/24/3600*O55*1000 -> 0.7291696201 | F55: =C55/7/24/3600*0.9*1000 -> 1.726980679 | N55: Power cycle efficiency | O55: 0.38
B56: 2. Gasification - All organics and plastic | C56: =(SUMPRODUCT(C7:C15,J7:J15)+C43*J43)*L56 -> 3830.356831 | E56: =C56/7/24/3600*O56*1000*L56 -> 1.925311634 | F56: =C56/7/24/3600*L56*1000-E56 -> 3.14129793 | H56: =C56/7/24/3600*L56*1000 -> 5.066609564 | K56: Thermo efficiency: | L56: 0.8 | N56: Power cycle efficiency | O56: 0.38
B57: 3. Gasification - RDF excluding FOGO | C57: =(SUMPRODUCT(C7:C15,J7:J15)+C44*J44)*L57 -> 2753.322682 | E57: =C57/7/24/3600*O57*1000*L57 -> 1.383945263 | F57: =C57/7/24/3600*L57*1000-E57 -> 2.258015956 | H57: =C57/7/24/3600*L57*1000 -> 3.641961219 | K57: Thermo efficiency: | L57: 0.8 | N57: Power cycle efficiency | O57: 0.38
B58: 4. Combustion - All organics and plastic | C58: =(SUMPRODUCT(C7:C15,J7:J15)+C43*J43)*L58 -> 4692.187117 | E58: =C58/7/24/3600*O58*1000 -> 1.396484261 | F58: =C58/7/24/3600*L58*1000-E58 -> 6.206596716 | H58: 7.603080977 | K58: Thermo efficiency: | L58: 0.98 | N58: Power cycle efficiency | O58: 0.18
B59: 5. Combustion - RDF excluding FOGO | C59: =(SUMPRODUCT(C7:C15,J7:J15)+C44*J44)*L59 -> 3372.820285 | E59: =C59/7/24/3600*0.18*1000 -> 1.003815561 | F59: 4.461402494 | H59: 5.465218055 | K59: Thermo efficiency: | L59: 0.98 | N59: Power cycle efficiency | O59: 0.18
B61: Input your RMPF's production of the following wastes | C61: tpw | E61: BMP m3 CH4/week | F61: LHV [GJ/t]
B62: Paunch
B63: Waste Aerobic Sludge (WAS)
B64: DAF Sludge
B65: Green Wastes (Grass Clippings etc)
B66: Fresh Manure Scrapings
B67: Total
B69: Input available surrounding waste streams | C69: tpw | E69: BMP m3 CH4/week | F69: LHV [GJ/t]
B70: =B21 -> Municipal Solid Waste - After recycling
B71: =B23 -> FOGO (Food Organics / Green Organics)
B72: =B29 -> Segregated Wood [dry]
B73: =B24 -> All organics
B74: =B40 -> Grease Trap Waste
B78: AMPC Aggregated Waste to Energy (W2E) Tool
B79: © All Energy Pty Ltd, 2020
B81: Input Plant Information
B83: Average Processing Rate in Head Per Week | C83: 6000
B84: Average Processing Rate [tHSCW pw] | C84: =C83*0.355 -> 2130
B86: Approximate Production of Non-Recyclable Wastes [tpw] | D86: Solids % | H86: BMP m3 CH4/week | I86: GJt/week
B87: Paunch | C87: =C84*0.071235926 -> 151.7325224 | D87: 0.25 | H87: =C87*D87*88%*231.5 -> 7727.737365
B88: Aerobic Wastewater Sludge / Waste Activated Sludge | C88: =C84*0.195898797 -> 417.2644376 | D88: 0.125 | H88: =C88*D88*85.7%*230 -> 10280.87416
B89: DAF Sludge | C89: =C84*0.035617963 -> 75.86626119 | D89: 0.07 | H89: =C89*D89*60%*663 -> 2112.571909
B90: Green Stream Screenings | C90: =C83/52*687/6400 -> 12.38581731 | D90: 0.2 | H90: =C90*D90*88%*254.5 -> 554.7855288
B91: Red Stream Screenings | C91: =C83/52*991/6400 -> 17.86658654 | D91: 0.2 | H91: =C91*D91*70%*372 -> 930.4918269
B92: Plastic Packaging | C92: =C83*598/52/1500/5 -> 9.2 | D92: 0.9 | H92: 0 | I92: =C92*35.7 -> 328.44
B93: Cardboard Packaging | C93: =C83*432/52/1500/5 -> 6.646153846 | D93: 0.9 | H93: 0 | I93: =C93*16.75 -> 111.3230769
B94: Kitchen / Cafeteria Waste | C94: =C83*200/52/1500/5 -> 3.076923077 | D94: 0.25 | H94: =C94*D94*91%*600 -> 420
B96: Surrounding Available Wastes
B98: Local council population | C98: 0 | H98: =C98*0.0093*5.9502/9.4*26%*91%*600+C98*0.0093*5.9502/9.4*27%*60%*343 -> 0 | I98: =C98*0.005777048*6.71/7.39*0.11*17.5 -> 0
B100: Used Tyre Crumb [tpw]
B102: Construction & Demolition (C&D) Waste [tpw]
B103: Segregated Wood
B104: Refuse Derived Fuel
B105: Inerts
B107: Grease Trap Waste [tpw]
B109: W2E Options
B111: Anaerobic Digestion (AD) of FOGO and RMP organics
B112: tpw digested | C112: =SUM(C87,C88,C89,C90,C91,C94)+(C98*0.005777048*(0.35+0.165)) -> 678.1925481
B113: GJ pw | C113: =SUM(H87,H88,H89,H90,H91,H94,H98)*35.8 -> 788547.2963
B114: MWe | C114: =C113*0.4/5/16/3600*0.85 -> 0.9309238915
B115: MWt | C115: =C114*1.1 -> 1.024016281
B117: Gasification of RDF [excludes FOGO and RMP organics]
B118: tpw gasified | C118: =SUM(C92,C93,C98*0.005777048) -> 15.84615385
B119: GJ pw | C119: =SUM(I92,I93,I98) -> 439.7630769
B120: MWe | C120: =C119*1000/5/16/3600*0.26 -> 0.3970083333
B121: MWt | C121: =C120*0.45 -> 0.17865375
B123: Combustion of Paunch and Wood in 1:1 ratio | H123: Wood pp pw | I123: =C45/C19 -> 0.001118081614
B124: tpw burned | C124: =C87/0.5 -> 303.4650448
B125: GJ pw | C125: =C124*0.5*17.5+1.7*0.5*C124 -> 2913.26443
B126: MWt | C126: =C125*1000/5/16/3600*0.7 -> 7.080851044
B128: Cost Data
B131: Power Volume Price [$/kWh] | C131: 0.14
B133: Power Demand Price [$/kVA/day or $/kW/day] | C133: 0.27
B135: Thermal Fuel Price [$/GJ] | C135: 12
B137: Cost Benefit Analysis
B139: W2E Option | C139: AD | D139: Gasification | E139: Paunch Combustion
B141: Capital Cost | C141: =MROUND(((C112*48/40000))^0.6*7000000,100000) -> 6200000 | D141: =MROUND((C120/1.3)^0.6*15000000,100000) -> 7400000 | E141: =MROUND(2300000*(C126/5)^0.9,100000) -> 3100000
B143: Revenue per Annum | C143: =MROUND(C115/1000*3600*6*16*48*C135+C114*1000*6*48*C133+C114*1000*16*6*48*C131-C114*1000*16*6*48*0.02,50000) -> 800000 | D143: =MROUND(C121/1000*3600*16*6*48*C135+C120*1000*6*48*C133+C120*1000*16*6*48*C131-C120*1000*16*6*48*0.02,50000) -> 300000 | E143: =MROUND(C126/1000*3600*16*6*48/2*C135+C126/1000*3600*16*6*48/2*(C135-4),50000) -> 1150000
B145: Simple Payback | C145: =C141/C143 -> 7.75 | D145: =D141/D143 -> 24.66666667 | E145: =E141/E143 -> 2.695652174

Sheet Costs (hidden)
A1: Reference | B1: Value | C1: Unit | D1: Description
A2: 2019-1020 Analysis of State Based Processing Costs | B2: 1149 | C2: hpd | D2: Average number of head per day
B3: 0.296 | C3: tHSCW/head
B4: 9.2 | C4: $/head | D4: electricity cost
B5: 5.51 | C5: =C4 -> $/head | D5: other fuel
B6: 4.51 | C6: =C5 -> $/head | D6: water and sewerage
B7: 2.41 | C7: $/head | D7: waste disposal
A42: AMPC Industry Environmental Sustainability Review 2010 | B42: =5.6/1000 -> 0.0056 | C42: t/tHSCW | D42: packaging waste
A44: AMPC Waste Solids Environmental Best Practice Manual 2003 | B44: 0.469 | C44: cardboard
B45: 0.029 | C45: plastic
B46: 0.039 | C46: vacuum bag
B47: 0.013 | C47: strapping
